Cogmind - Beta 11 X3 @@@ ROGUE MODE // 2021.04.29 @ 01:06:44 // AFD2020/Player2 Player: p2 Beta 11 Result: Core destroyed Performance ------------- Evolutions (8) 4000 Regions Visited (22) 4400 Robots Destroyed (264) 1320 Value Destroyed (14435) 14435 Prototype IDs (23) 460 Alien Tech Used (7) 1400 Bonus (17784) 17784 TOTAL SCORE: 43799 Bonus ------- High Alert Combat Kills 2331 Follower Combat Kills 11795 Entered Garrisons 1600 Used RIF Installer 4000 Scanned by Researcher 500 Friendly Fire -2442 Cogmind --------- Core Integrity 0/1450 Matter 161/300 Energy 1235/1350 System Corruption 4% Temperature Cool (0) Movement Immobile (Siege) Location -2/Section 7 Parts ------- > --- POWER (3) -------- Improved Quantum Reactor Improved Quantum Reactor Improved Quantum Reactor > --- PROPULSION (6) --- Biometal Heavy Treads Biometal Heavy Treads Experimental Biometal Heavy Treads > --- UTILITY (11) ----- Experimental Cooling System Huge Storage Unit Experimental Optical Array Advanced Target Analyzer Experimental Core Analyzer Advanced Armor Integrity Analyzer Advanced Weapon Cycler Improved Force Field System Mapper Matter Drive > --- WEAPON (3) ------- KE Penetrator Helical Railgun Multirail > --- INVENTORY (25) --- Particle Reactor Improved Quantum Reactor Armored Heavy Treads Experimental Matter Compressor (500) Quantum Capacitor Relay Coupler [Grunt] (25) Long-range Tractor Beam Transdimensional Reconstructor Transdimensional Reconstructor Core Reset Matrix Terrabomb Terrabomb Terrabomb Microwarp Drive Railgun Fusion Bomb Launcher Advanced Remote Datajack Peak State ------------ > --- POWER ------------ Improved Quantum Reactor Improved Quantum Reactor Improved Quantum Reactor > --- PROPULSION ------- Biometal Heavy Treads Biometal Heavy Treads Experimental Biometal Heavy Treads > --- UTILITY ---------- Experimental Cooling System Huge Storage Unit Experimental Optical Array Advanced Target Analyzer Experimental Core Analyzer Advanced Armor Integrity Analyzer Advanced Weapon Cycler Improved Force Field System Mapper Matter Drive > --- WEAPON ----------- KE Penetrator Helical Railgun Multirail > --- INVENTORY -------- Particle Reactor Improved Quantum Reactor Armored Heavy Treads Experimental Matter Compressor Quantum Capacitor Relay Coupler [Grunt] Long-range Tractor Beam Transdimensional Reconstructor Transdimensional Reconstructor Core Reset Matrix Terrabomb Terrabomb Terrabomb Microwarp Drive Railgun Fusion Bomb Launcher Advanced Remote Datajack [Rating: 226] Favorites ----------- Power Improved Quantum Reactor Engine Cooled Ion Engine Power Core Micro Fission Core Reactor Improved Quantum Reactor Propulsion Improved Medium Treads Treads Improved Medium Treads Leg Improved Aluminum Leg Utility Medium Storage Unit Device Advanced Cooling System Storage Medium Storage Unit Processor Experimental Optical Array Hackware Relay Coupler [NC] Protection Layered Medium Armor Plating Artifact Matter Drive Weapon Hardcell Cannon Energy Gun Quantum Rifle Energy Cannon Advanced Beam Cannon Ballistic Gun Railgun Ballistic Cannon Hardcell Cannon Launcher Grenade Launcher Special Weapon Advanced Remote Datajack Slashing Weapon Axe Special Melee Weapon Improved Datajack Build | -11 -10 -10 -9 -9 -9 -8 -8 -8 -8 -7 -7 -6 -6 -5 -5 -4 -4 -3 -3 -2 -2 -2 ------- Run | Scr Mat Min Mat Sto Gar Mat Gar Mat Gar Fac Gar Fac Gar Fac Gar Fac Gar Res Gar Res Tes Sec Slots Evolved 16 | . . . 2 . . 2 . . . 2 . 2 . 2 . 2 . 2 . 2 . . Power 2 | . . . . . . . . . . . . . . 1 . . . 1 . . . . Propulsion 4 | . . . 1 . . . . . . . . 1 . . . . . 1 . 1 . . Utility 9 | . . . 1 . . 2 . . . 2 . 1 . . . 2 . . . 1 . . Weapon 1 | . . . . . . . . . . . . . . 1 . . . . . . . . Parts Attached 350 | 12 14 . 12 16 1 5 2 4 5 5 2 21 9 36 22 12 12 7 8 55 20 70 Power 23 | 3 1 . 1 1 . . . . . . . . . 2 1 . 1 . 2 5 . 6 Engine 10 | 3 1 . 1 1 . . . . . . . . . 1 1 . 1 . . 1 . . Core 1 | . . . . . . . . . . . . . . 1 . . . . . . . . Reactor 12 | . . . . . . . . . . . . . . . . . . . 2 4 . 6 Propulsion 51 | 4 3 . 1 6 . . . 1 2 . . 8 4 2 4 1 1 3 . 4 1 6 Treads 32 | 2 . . . . . . . . . . . 4 4 2 4 1 1 3 . 4 1 6 Leg 19 | 2 3 . 1 6 . . . 1 2 . . 4 . . . . . . . . . . Wheel . | . . . . . . . . . . . . . . . . . . . . . . . Hover . | . . . . . . . . . . . . . . . . . . . . . . . Flight . | . . . . . . . . . . . . . . . . . . . . . . . Utility 159 | 3 4 . 2 3 . 4 . 2 1 3 . 4 1 18 5 7 6 3 4 26 17 46 Device 85 | 1 1 . . 1 . 1 . 2 . 2 . 1 . 9 2 2 1 1 2 16 9 34 Storage 12 | 1 . . . . . 3 . . . . . . 1 . . . 1 1 . 2 . 3 Processor 13 | 1 3 . . 1 . . . . 1 . . 1 . . . . . 1 1 . . 4 Hackware 26 | . . . . 1 . . . . . . . 1 . 7 2 2 3 . 1 7 2 . Protection 21 | . . . 2 . . . . . . 1 . 1 . 2 1 3 1 . . 1 6 3 Artifact 2 | . . . . . . . . . . . . . . . . . . . . . . 2 Weapon 117 | 2 6 . 8 6 1 1 2 1 2 2 2 9 4 14 12 4 4 1 2 20 2 12 Energy Gun 3 | . . . . . . . . . . . . 1 . . . . . . . . . 2 Energy Cannon 14 | . 3 . 5 5 . . . . 1 . . . . . . . . . . . . . Ballistic Gun 36 | 2 1 . . . . . . . . 1 . 6 2 11 7 . . . . . 2 4 Ballistic Cannon 17 | . . . . . . . . . . . . . . . . 3 2 1 1 10 . . Launcher 14 | . . . 3 1 1 . 2 1 1 . 1 . 1 . . . . . . . . 3 Special Weapon 24 | . 2 . . . . . . . . . . . . 2 3 1 2 . 1 10 . 3 Impact Weapon . | . . . . . . . . . . . . . . . . . . . . . . . Slashing Weapon 7 | . . . . . . 1 . . . 1 1 . 1 1 2 . . . . . . . Piercing Weapon . | . . . . . . . . . . . . . . . . . . . . . . . Special Melee Weapon 2 | . . . . . . . . . . . . 2 . . . . . . . . . . Unidentified Prototypes 21 | . . . . 2 . . . . . . . . . . . . . 1 . . 6 12 Parts Lost 30 | . . . 1 . . . . 2 1 1 . 4 1 3 4 . 3 . . 3 1 6 Power 4 | . . . . . . . . . . . . . . . 1 . 1 . . 1 . 1 Propulsion 6 | . . . . . . . . . . . . 2 . . 1 . 1 . . 2 . . Utility 8 | . . . . . . . . 1 . . . 1 . 2 1 . 1 . . . . 2 Weapon 12 | . . . 1 . . . . 1 1 1 . 1 1 1 1 . . . . . 1 3 Highest Loss Streak 4 | . . . 1 . . . . 1 1 1 . 3 1 1 4 . 2 . . 1 1 4 Average Slot Usage (%) 93 | . 99 100 99 99 100 98 100 99 99 94 100 98 99 99 99 99 97 93 98 91 85 83 Engine 4 | . 14 14 11 11 11 9 9 9 9 7 7 6 6 6 4 5 3 4 4 . . . Core 1 | . . . . . . . . . . . . . . 3 5 5 5 4 4 2 . . Reactor 4 | . . . . . . . . . . . . . . . . . . . 2 9 13 12 Treads 14 | . . . . . . . . . . . . 7 26 23 22 21 20 22 23 19 17 13 Leg 7 | . 28 28 33 33 33 27 27 27 27 23 23 18 . . . . . . . . . . Device 16 | . 3 14 11 11 11 18 18 17 18 22 23 14 20 13 14 10 12 16 22 19 19 16 Storage 4 | . . . . . . 7 9 9 9 7 7 6 5 5 5 5 6 6 4 4 4 4 Processor 9 | . 24 14 11 12 22 18 18 18 18 15 15 19 20 6 5 5 5 4 4 4 4 10 Hackware 8 | . . . . 3 . . . . . . . 5 6 16 12 18 12 9 4 10 9 10 Protection 4 | . . . 10 5 . . . . . 2 7 3 . 1 5 11 13 9 9 5 2 1 Energy Cannon 3 | . 15 28 20 21 18 9 9 9 8 7 1 . . . . . . . . . . . Ballistic Gun 5 | . 8 . . . . . . . . . . 5 12 16 16 7 . . . . 4 8 Ballistic Cannon 4 | . . . . . . . . . . . . . . . . 2 14 14 13 12 7 . Launcher 1 | . . . 1 . 3 4 9 9 9 4 5 4 . . . . . . . . . . Naked Turns . | . . . . . . . . . . . . . . . . . . . . . . . Heaviest Build 179 | 10 12 12 15 19 18 38 29 29 29 35 35 32 30 50 59 87 91 91 102 131 141 179 Greatest Support 245 | 40 20 20 30 39 39 39 39 43 43 43 43 88 100 108 120 113 113 141 139 206 206 245 Greatest Overweight (x) 1 | 1 . . . . . . . . . . . . . . . . 1 . . . . . Average Overweight (x) . | . . . . . . . . . . . . . . . . . . . . . . . Largest Inventory Capacity 25 | 8 5 5 5 5 5 15 10 10 10 10 10 10 10 10 10 10 10 10 10 10 10 25 Average Capacity 10 | 6 5 5 5 5 5 9 10 10 10 10 10 10 9 10 10 10 10 10 10 10 10 17 Most Carried 22 | 5 5 5 5 5 5 9 10 10 10 10 10 10 10 10 10 10 10 10 10 10 10 22 Average Carried 8 | 1 3 4 4 4 4 6 9 9 9 9 9 9 9 8 6 9 9 9 9 9 8 11 Final Capacity 25 | 5 5 5 5 5 5 10 10 10 10 10 10 10 10 10 10 10 10 10 10 10 10 25 Final Carried 20 | 5 5 5 4 5 5 9 10 10 9 10 10 9 9 9 10 9 10 10 10 8 8 20 Class Distribution -------------------- 23% | Mutant 19% | Botlord-Tank 9% | Bothacker-Tank 8% | Generator-Gunner 7% | Bothacker-Gunner 6% | Scavenger-Mutant 5% | Botlord-Mutant 3% | Generator-Mutant 3% | Hacker-Gunner 3% | Bothacker-Mutant 3% | Scavenger-Gunner Dominant Class ---------------- Mutant | -10/Materials Mutant | -10/Mines Mutant | -9/Materials Mutant | -9/Storage Mutant | -9/Garrison Mutant | -8/Materials Mutant | -8/Garrison Mutant | -8/Materials Mutant | -8/Garrison Mutant | -7/Factory Mutant | -7/Garrison Scavenger-Mutant | -6/Factory Bothacker-Mutant | -6/Garrison Bothacker-Gunner | -5/Factory Bothacker-Tank | -5/Garrison Botlord-Mutant | -4/Factory Botlord-Tank | -4/Garrison Botlord-Tank | -3/Research Botlord-Tank | -3/Garrison Botlord-Tank | -2/Research Bothacker-Gunner | -2/Testing Generator-Gunner | -2/Section 7 Resources | -11 -10 -10 -9 -9 -9 -8 -8 -8 -8 -7 -7 -6 -6 -5 -5 -4 -4 -3 -3 -2 -2 -2 ----------- Run | Scr Mat Min Mat Sto Gar Mat Gar Mat Gar Fac Gar Fac Gar Fac Gar Fac Gar Res Gar Res Tes Sec Matter Collected 13889 | 332 150 29 146 160 30 50 31 68 125 48 70 357 315 975 757 109 451 274 488 3388 1499 4037 Remotely 5564 | . . . . . . . . . . . . . . 251 662 109 . . 127 1742 747 1926 Salvage Created 12743 | 137 270 31 195 692 290 . 162 162 85 . 81 316 202 1267 829 . 126 248 205 2477 1353 3615 Parts 586 | 14 19 2 8 41 22 . 7 16 6 . 7 23 18 68 37 . 3 7 11 95 36 146 Haulers Intercepted 9 | . 1 . . 2 . . . . . . . . . 1 . . . . . 1 1 3 Recyclers Shooed 12 | 1 . . . 1 . . . . . . . 1 . . . . . 2 . 3 . 4 Parts Field Recycled . | . . . . . . . . . . . . . . . . . . . . . . . Retrieved Matter . | . . . . . . . . . . . . . . . . . . . . . . . Parts Self-Destructed . | . . . . . . . . . . . . . . . . . . . . . . . Prevented . | . . . . . . . . . . . . . . . . . . . . . . . Kills | -11 -10 -10 -9 -9 -9 -8 -8 -8 -8 -7 -7 -6 -6 -5 -5 -4 -4 -3 -3 -2 -2 -2 ------- Run | Scr Mat Min Mat Sto Gar Mat Gar Mat Gar Fac Gar Fac Gar Fac Gar Fac Gar Res Gar Res Tes Sec Combat Hostiles Destroyed 197 | . 6 2 4 10 9 . 3 6 4 . 4 4 8 14 13 . 4 3 6 38 15 44 Melee 1 | . . . . . . . . . . . . . . . . . 1 . . . . . Guns 66 | . . . . . . . . . . . . 1 6 14 13 . . . . . 1 31 Cannons 102 | . 6 2 4 10 9 . 3 3 . . . . . . . . 3 3 6 38 14 1 AOE 28 | . . . . . . . . 3 4 . 4 3 2 . . . . . . . . 12 Classes Destroyed 22 | 2 3 . 2 2 . . 1 . 1 . . 2 . 2 . . . . . 2 2 3 Worker 11 | . . . . . . . . . . . . 3 . 1 . . . . . 3 . 4 Builder 10 | . . . . . . . . . . . . 3 . 1 . . . . . 3 2 1 Tunneler 5 | 4 . . . . . . . . . . . . . . . . . . . 1 . . Hauler 9 | . 1 . . 2 . . . . . . . . . 1 . . . . . 1 1 3 Recycler 17 | 1 1 . . 1 . . . . . . . . . 1 . . . 1 . 5 3 4 Mechanic 2 | . . . . . . . . . . . . . . . . . . . . 2 . . Operator 4 | . . . 1 1 . . . . . . . . . 2 . . . . . . . . Watcher 3 | . . . . 1 . . . . . . . . . . . . . . . 1 . 1 Swarmer 51 | . 3 2 . . 4 . . 3 . . 3 . 8 1 3 . 1 . 4 7 1 11 Grunt 70 | . 3 . 2 6 2 . 1 . 3 . 1 4 . 6 8 . 2 1 . 15 8 8 Brawler 5 | . . . . 1 . . . . . . . . . 1 . . . . . 2 . 1 Duelist 4 | . . . . . . . 1 . . . . . . 1 . . . . . 1 . 1 Protector 2 | . . . . . . . . . 1 . . . . . . . . . . 1 . . Researcher 5 | . . . . . . . . . . . . . . . . . . . . . 2 3 Sentry 25 | . . . 2 3 3 . 1 3 . . . . . 1 2 . 1 1 1 3 . 4 Demolisher 1 | . . . . . . . . . . . . . . . . . . . . . . 1 Specialist 2 | . . . . . . . . . . . . . . . . . . . . . 2 . Hunter 15 | . . . . . . . . . . . . . . 1 . . . . 1 5 . 8 Programmer 17 | . . . . . . . . . . . . . . 3 . . . 1 . 4 4 5 Q-Series 2 | . . . . . . . . . . . . . . . . . . . . . . 2 Behemoth 3 | . . . . . . . . . . . . . . . . . . . . 1 . 2 Executioner 1 | . . . . . . . . . . . . . . . . . . . . . . 1 Best Kill Streak 13 | 3 5 2 3 5 4 . 2 4 4 . 3 4 5 5 5 . 1 2 3 6 7 13 Combat Bots Only 10 | . 3 2 3 3 4 . 2 4 4 . 3 2 5 5 5 . 1 1 3 5 6 10 Max Kills in Single Turn 3 | 1 2 1 1 2 2 . 1 2 3 . 2 1 2 1 2 . 1 1 1 2 2 3 Gunslinging 1 | . . . . . . . . . . . . . . . . . . . . . . 1 Exploded 3 | . . . . . . . . 2 3 . 2 1 2 . . . . . . . . 3 Melee 1 | . . . . . . . . . . . . . . . . . 1 . . . . . Uniques/NPCs Destroyed . | . . . . . . . . . . . . . . . . . . . . . . . Combat | -11 -10 -10 -9 -9 -9 -8 -8 -8 -8 -7 -7 -6 -6 -5 -5 -4 -4 -3 -3 -2 -2 -2 -------- Run | Scr Mat Min Mat Sto Gar Mat Gar Mat Gar Fac Gar Fac Gar Fac Gar Fac Gar Res Gar Res Tes Sec Damage Taken 12330 | . 92 27 191 142 194 . 127 179 118 299 24 942 443 451 721 16 719 310 543 1652 2004 3136 Core 1026 | . 13 13 20 14 27 . 7 12 26 147 12 80 . 22 19 . 102 12 36 142 160 162 Absorbed by Shields 5124 | . . . . . . . 36 . . . . . 6 . . . 70 119 158 1714 1203 1818 Reduced by Siege Mode 230 | . . . . . . . . . . . . . . . . . . . . 26 110 94 Core Remaining (%) 70 | 100 . 89 . . 72 . . . 62 . 65 . 70 . 28 . 83 . 69 . . . Volleys Fired 796 | 10 20 2 14 34 15 6 14 13 9 3 5 37 19 48 36 4 20 9 25 136 101 216 Largest 3 | 2 2 2 2 2 2 1 1 1 1 1 1 2 2 3 3 1 3 3 3 3 3 3 Hottest 187 | 40 120 120 120 136 136 68 68 68 60 60 30 103 56 105 105 40 179 187 187 187 187 174 Shots Fired 1763 | 20 33 4 23 66 29 6 14 13 9 3 5 41 37 133 92 4 46 27 57 371 232 498 Gun 845 | 20 6 . . . . . . . . . . 32 36 127 85 . . . . . 75 464 Cannon 819 | . 26 4 21 65 28 6 13 10 1 3 . . . . . . 41 27 49 352 157 16 Launcher 44 | . . . 2 1 1 . 1 3 8 . 5 9 1 . . . . . . . . 13 Special 55 | . 1 . . . . . . . . . . . . 6 7 4 5 . 8 19 . 5 Kinetic 1397 | 20 6 . . . . . . . . . . 28 36 127 85 . 41 27 49 352 232 394 Thermal 268 | . 27 4 21 65 28 6 13 10 1 3 . 4 . . . . . . . . . 86 Explosive 44 | . . . 2 1 1 . 1 3 8 . 5 9 1 . . . . . . . . 13 Electromagnetic . | . . . . . . . . . . . . . . . . . . . . . . . Robot Hit Streak 67 | 6 8 2 4 10 11 3 15 3 6 2 4 11 17 19 21 3 7 7 9 29 56 67 Robot Miss Streak 9 | 2 2 . 3 2 1 1 . 2 . 1 . 2 9 7 5 1 2 2 2 3 3 4 Penetration Max 2 | . . . . . . . . . . . . 1 . 1 2 . . . . 1 1 2 Secondary Targets 13 | . . . . . . . . . . . . . 1 2 4 . . . . . . 6 Max Gunslinging Chain 1 | . . . . . . . . . . . . . 1 1 1 . . . . . . 1 Shots Hit Robots 1264 | 11 19 2 10 38 17 5 12 9 3 2 2 28 36 105 61 3 32 17 34 256 181 381 Core Hits 686 | 5 9 2 7 16 10 . 8 7 12 . 9 32 41 99 33 . 10 7 11 97 59 212 Critical Hits 157 | . 1 . . 4 1 . 1 . . . . 1 . 20 30 . 4 4 3 27 20 41 Critical Kills 51 | . . . . 2 . . . . . . . . . 7 13 . 1 2 1 8 6 11 Critical Parts Destroyed 71 | . 1 . . 2 1 . 1 . . . . 1 . 9 13 . 1 2 . 15 7 18 Melee Attacks 14 | . . . . . . 6 . . . . . 3 1 2 2 . . . . . . . Impact . | . . . . . . . . . . . . . . . . . . . . . . . Slashing 11 | . . . . . . 6 . . . . . . 1 2 2 . . . . . . . Piercing . | . . . . . . . . . . . . . . . . . . . . . . . Sneak Attacks 3 | . . . . . . . . . . . . 3 . . . . . . . . . . Combat Hostiles . | . . . . . . . . . . . . . . . . . . . . . . . Follow-up Attacks . | . . . . . . . . . . . . . . . . . . . . . . . Damage Inflicted 40211 | 150 353 35 185 856 350 117 310 411 450 76 421 1334 952 1591 710 . 1034 782 1186 9261 6711 12936 Guns 15423 | 146 66 . . . . . . . . . . 611 778 1591 710 . . . . . 1712 9809 Cannons 19755 | . 277 35 173 837 350 83 244 165 . 53 . . . . . . 1012 737 1186 9094 4924 585 Explosions 4578 | . . . 12 . . . 58 246 450 . 421 709 174 . . . . . . . . 2508 Melee 34 | . . . . . . 34 . . . . . . . . . . . . . . . . Ramming 421 | 4 10 . . 19 . . 8 . . 23 . 14 . . . . 22 45 . 167 75 34 Kinetic 31582 | 146 66 . . . . . . . . . . 538 778 1591 710 . 1012 737 1186 9094 6636 9088 Thermal 3596 | . 277 35 173 837 350 83 244 165 . 53 . 73 . . . . . . . . . 1306 Explosive 4578 | . . . 12 . . . 58 246 450 . 421 709 174 . . . . . . . . 2508 Electromagnetic . | . . . . . . . . . . . . . . . . . . . . . . . Impact . | . . . . . . . . . . . . . . . . . . . . . . . Slashing 34 | . . . . . . 34 . . . . . . . . . . . . . . . . Piercing . | . . . . . . . . . . . . . . . . . . . . . . . Highest Corruption 7 | . . . . . . . . 2 2 . . 1 1 5 6 . . . . 7 2 4 Average Corruption 3 | . . . . . . . . 2 2 . . 1 1 5 5 . . . . 2 1 3 Corruption Purged 7 | . . . . . . . . . . . . . . . . . . . . 6 1 . Effects 120 | . . . . . . . . . 5 . . . 6 13 31 . . . . 11 6 48 Message Errors 35 | . . . . . . . . . 3 . . . 3 4 5 . . . . 3 4 13 Matter Fused 20 | . . . . . . . . . . . . . . 2 7 . . . . 1 . 10 Heat Flow Errors 13 | . . . . . . . . . . . . . . 2 3 . . . . . . 8 Energy Discharges 23 | . . . . . . . . . 1 . . . 2 2 5 . . . . 1 1 11 Parts Rejected 2 | . . . . . . . . . . . . . . . . . . . . . . 2 Data Loss (minor) 12 | . . . . . . . . . 1 . . . 1 2 2 . . . . 2 . 4 Data Loss (major) 6 | . . . . . . . . . . . . . . . 4 . . . . 2 . . Misfires 7 | . . . . . . . . . . . . . . 1 4 . . . . 2 . . Weapon Failures 2 | . . . . . . . . . . . . . . . 1 . . . . . 1 . Overload Shots . | . . . . . . . . . . . . . . . . . . . . . . . Overflow Damage 804 | . . . . 11 . . . 32 3 . . . 2 . . . 21 55 11 379 208 82 Projectiles 665 | . . . . 11 . . . . . . . . . . . . 21 34 11 374 205 9 Explosions 110 | . . . . . . . . 32 3 . . . 2 . . . . . . . . 73 Melee 29 | . . . . . . . . . . . . . . . . . . 21 . 5 3 . Knockbacks 96 | . . . . . . . . . . . . . . . . . 7 5 5 59 18 2 Impact . | . . . . . . . . . . . . . . . . . . . . . . . Kinetic 89 | . . . . . . . . . . . . . . . . . 6 5 4 54 18 2 Secondary 7 | . . . . . . . . . . . . . . . . . 1 . 1 5 . . Self-Inflicted Damage 110 | . . . . . . . . . 27 . . . 10 . . . . . . . . 73 Shots 3 | . . . . . . . . . 1 . . . 1 . . . . . . . . 1 Rammed 26 | . . . . . . . . . . . . . . . . . 3 2 . 13 3 5 Targets Rammed 47 | 2 3 . . 4 . . 3 . . 2 . 4 . . . . 4 2 . 15 3 5 Kicked 18 | 2 3 . . 4 . . 3 . . 2 . 4 . . . . . . . . . . Crushed 3 | . . . . . . . . . . . . . . . . . 1 . . 2 . . Highest Temperature 419 | . 203 120 189 198 18 . . 48 5 8 . 27 . 252 252 . 226 241 342 369 224 419 Average Temperature 99 | . 81 62 66 82 10 . . 23 3 6 . 17 . 126 98 . 91 101 116 113 95 113 Received Heat Transfer 1469 | . 18 . 72 51 63 . 57 45 54 19 . 244 42 60 186 . 87 41 40 60 124 206 Effects 2 | . . . . . . . . . . . . . . . . . . . . 1 . 1 Shutdowns 1 | . . . . . . . . . . . . . . . . . . . . 1 . . Short Circuit 1 | . . . . . . . . . . . . . . . . . . . . . . 1 Siege Activations 31 | . . . . . . . . . . . . . . . . . . . . 6 10 15 Total Turns 353 | . . . . . . . . . . . . . . . . . . . . 70 109 174 Longest Duration 46 | . . . . . . . . . . . . . . . . . . . . 18 46 21 Robots Corrupted . | . . . . . . . . . . . . . . . . . . . . . . . Combat Hostiles . | . . . . . . . . . . . . . . . . . . . . . . . Parts Fried 2 | . . . . . . . . . . . . . . . 2 . . . . . . . Impact Corruptions 6 | . . . . . . . . . . . . . . . . . . 1 . 4 1 . Robots Melted . | . . . . . . . . . . . . . . . . . . . . . . . Combat Hostiles . | . . . . . . . . . . . . . . . . . . . . . . . Parts Melted 4 | . . 1 . 1 . . . . . . . . . . 1 . . . . . . 1 Heat Transferred 5743 | . 564 74 370 1517 629 148 444 296 . 74 . 111 . . . . . . . . . 1516 Parts Sabotaged . | . . . . . . . . . . . . . . . . . . . . . . . Parts Stolen . | . . . . . . . . . . . . . . . . . . . . . . . Parts Stripped . | . . . . . . . . . . . . . . . . . . . . . . . Power Chain Reactions . | . . . . . . . . . . . . . . . . . . . . . . . Missiles Intercepted . | . . . . . . . . . . . . . . . . . . . . . . . Alert | -11 -10 -10 -9 -9 -9 -8 -8 -8 -8 -7 -7 -6 -6 -5 -5 -4 -4 -3 -3 -2 -2 -2 ------- Run | Scr Mat Min Mat Sto Gar Mat Gar Mat Gar Fac Gar Fac Gar Fac Gar Fac Gar Res Gar Res Tes Sec Peak Influence 1206 | 25 490 277 427 610 730 487 632 648 686 540 472 516 1017 1045 1206 632 820 622 849 757 911 816 Initial 686 | . 16 190 107 180 189 355 316 308 278 359 133 247 354 533 686 632 286 461 386 477 218 240 Average 506 | 17 269 276 249 308 528 402 449 422 506 347 322 266 796 757 1053 493 675 501 721 396 557 297 Maximum Alert Level 4 | . 2 1 2 2 3 2 2 2 2 2 2 2 3 3 4 2 3 2 3 3 3 3 Low Security (%) 14 | 100 45 . 23 32 . . . . . 9 36 41 . . . . . . . 23 . 33 Level 1 22 | . 11 100 69 36 16 58 38 38 28 53 18 29 9 . . 28 16 . 6 18 5 39 Level 2 36 | . 42 . 6 30 74 41 61 61 72 37 45 29 32 41 3 71 12 100 10 49 77 23 Level 3 20 | . . . . . 7 . . . . . . . 58 58 24 . 71 . 82 8 16 2 Level 4 5 | . . . . . . . . . . . . . . . 71 . . . . . . . Level 5 . | . . . . . . . . . . . . . . . . . . . . . . . High Security . | . . . . . . . . . . . . . . . . . . . . . . . Max Security . | . . . . . . . . . . . . . . . . . . . . . . . Squads Dispatched 90 | . 2 . 3 6 . 1 . . . 1 . 4 . 10 . . . 5 . 17 13 28 Investigation 8 | . 1 . 1 . . . . . . . . . . 1 . . . 1 . 2 . 2 Extermination 21 | . . . . . . . . . . 1 . . . 3 . . . 1 . 3 4 9 Reinforcement 36 | . 1 . 2 3 . . . . . . . 1 . 3 . . . 1 . 4 9 12 Assault 10 | . . . . . . . . . . . . . . 3 . . . . . 6 . 1 Garrison 15 | . . . . 3 . 1 . . . . . 3 . . . . . 2 . 2 . 4 Intercept . | . . . . . . . . . . . . . . . . . . . . . . . Construction Impeded 11 | . . . . . . . . . . . . 1 . . . . . 1 . 3 2 4 Haulers Reinforced 4 | . . . . . . . . . . . . . . 1 . . . . . . 2 1 Alert ID Control Effect 9 | . . . . . . . . . . . . . . 2 4 . . . . 3 . . Stealth | -11 -10 -10 -9 -9 -9 -8 -8 -8 -8 -7 -7 -6 -6 -5 -5 -4 -4 -3 -3 -2 -2 -2 --------- Run | Scr Mat Min Mat Sto Gar Mat Gar Mat Gar Fac Gar Fac Gar Fac Gar Fac Gar Res Gar Res Tes Sec Distress Signals 15 | . 3 . 1 1 . . . . . . . . . 1 . . . 3 . 3 1 2 Communications Jammed . | . . . . . . . . . . . . . . . . . . . . . . . Distress Signals . | . . . . . . . . . . . . . . . . . . . . . . . Times Spotted 512 | . 16 2 9 21 14 4 6 8 7 5 12 19 25 40 27 5 19 24 20 87 44 98 Peak Tracking Total 12 | . 5 2 8 4 5 2 3 3 5 3 4 5 10 8 12 4 6 12 8 7 5 10 Tactical Retreats 19 | . 1 . . . . . . . . . . 1 1 2 2 . 4 . 1 4 1 2 Traps | -11 -10 -10 -9 -9 -9 -8 -8 -8 -8 -7 -7 -6 -6 -5 -5 -4 -4 -3 -3 -2 -2 -2 ------- Run | Scr Mat Min Mat Sto Gar Mat Gar Mat Gar Fac Gar Fac Gar Fac Gar Fac Gar Res Gar Res Tes Sec Traps Triggered 9 | . . . . . . . 1 1 1 1 . . . 1 . . 1 . . . 1 2 Indirectly . | . . . . . . . . . . . . . . . . . . . . . . . Trap Hack Attempts . | . . . . . . . . . . . . . . . . . . . . . . . Triggered . | . . . . . . . . . . . . . . . . . . . . . . . Disarmed . | . . . . . . . . . . . . . . . . . . . . . . . Reprogrammed . | . . . . . . . . . . . . . . . . . . . . . . . Reused . | . . . . . . . . . . . . . . . . . . . . . . . Traps Extracted . | . . . . . . . . . . . . . . . . . . . . . . . Installed . | . . . . . . . . . . . . . . . . . . . . . . . Triggered 1 | . . . . . . . . . . . . . . 1 . . . . . . . . Machines | -11 -10 -10 -9 -9 -9 -8 -8 -8 -8 -7 -7 -6 -6 -5 -5 -4 -4 -3 -3 -2 -2 -2 ---------- Run | Scr Mat Min Mat Sto Gar Mat Gar Mat Gar Fac Gar Fac Gar Fac Gar Fac Gar Res Gar Res Tes Sec Machines Disabled 70 | . . . 1 1 . . 1 . 1 10 . 2 2 5 2 1 2 1 2 7 7 25 Max in Single Turn 1 | . . . 1 1 . . 1 . 1 . . . 1 . 1 . 1 1 1 1 1 1 Garrison Access 3 | . . . . . . . . . . . . . . . . . . . . 2 . 1 Garrison Relay 8 | . . . . . . . 1 . 1 . . . 1 . 2 . 2 . 1 . . . Machines Sabotaged . | . . . . . . . . . . . . . . . . . . . . . . . Garrisons Compromised . | . . . . . . . . . . . . . . . . . . . . . . . Overloaded Fab Kills . | . . . . . . . . . . . . . . . . . . . . . . . Fab Network Shutdowns . | . . . . . . . . . . . . . . . . . . . . . . . Hacking | -11 -10 -10 -9 -9 -9 -8 -8 -8 -8 -7 -7 -6 -6 -5 -5 -4 -4 -3 -3 -2 -2 -2 --------- Run | Scr Mat Min Mat Sto Gar Mat Gar Mat Gar Fac Gar Fac Gar Fac Gar Fac Gar Res Gar Res Tes Sec Machines Accessed 44 | . 1 . 2 3 . 1 . 2 . 4 . 2 . 3 . 2 . 1 . 3 4 16 Terminals 31 | . . . 2 2 . . . 1 . 3 . 1 . 2 . 1 . . . 3 3 13 Fabricators 1 | . . . . . . . . . . . . . . . . . . . . . 1 . Repair Stations . | . . . . . . . . . . . . . . . . . . . . . . . Recycling Units 1 | . 1 . . . . . . . . . . . . . . . . . . . . . Scanalyzers 2 | . . . . . . . . . . . . . . . . . . . . . . 2 Garrison Access 9 | . . . . 1 . 1 . 1 . 1 . 1 . 1 . 1 . 1 . . . 1 Total Hacks 114 | . 1 . 12 8 . 1 . 6 . 14 . 5 . 5 . 3 . 2 . 10 12 35 Successful 64 | . 1 . 4 6 . 1 . 5 . 8 . 3 . 4 . 3 . 2 . 4 5 18 Failed 50 | . . . 8 2 . . . 1 . 6 . 2 . 1 . . . . . 6 7 17 Catastrophic 6 | . . . . . . . . . . . . 1 . 1 . . . . . 3 . 1 Database Lockouts . | . . . . . . . . . . . . . . . . . . . . . . . Manual 59 | . 1 . 11 2 . 1 . 3 . 11 . 4 . . . 3 . . . 4 5 14 Terminals 94 | . . . 12 6 . . . 4 . 12 . 4 . 4 . 2 . . . 10 10 30 Fabricators 2 | . . . . . . . . . . . . . . . . . . . . . 2 . Repair Stations . | . . . . . . . . . . . . . . . . . . . . . . . Recycling Units 1 | . 1 . . . . . . . . . . . . . . . . . . . . . Scanalyzers 4 | . . . . . . . . . . . . . . . . . . . . . . 4 Garrison Access 13 | . . . . 2 . 1 . 2 . 2 . 1 . 1 . 1 . 2 . . . 1 Terminal Hacks 40 | . . . 3 4 . . . 3 . 4 . 2 . 3 . 2 . . . 4 4 11 Prototype ID Bank 1 | . . . . . . . . . . . . 1 . . . . . . . . . . Open Door 7 | . . . . 1 . . . . . . . . . . . . . . . . 1 5 Level Access Points 1 | . . . . . . . . . . . . . . . . . . . . . . 1 Branch Access Points 3 | . . . 1 . . . . . . . . . . 1 . . . . . 1 . . Terminal Index 2 | . . . 1 . . . . . . 1 . . . . . . . . . . . . Unreport Threat 20 | . . . . 2 . . . 2 . 2 . 1 . 2 . 2 . . . 3 3 3 Locate Traps 3 | . . . . . . . . . . 1 . . . . . . . . . . . 2 Recall Reinforcements 1 | . . . . 1 . . . . . . . . . . . . . . . . . . Zone Layout 2 | . . . 1 . . . . 1 . . . . . . . . . . . . . . Fabricator Hacks 1 | . . . . . . . . . . . . . . . . . . . . . 1 . Build 1 | . . . . . . . . . . . . . . . . . . . . . 1 . Repair Station Hacks . | . . . . . . . . . . . . . . . . . . . . . . . Recycling Unit Hacks . | . . . . . . . . . . . . . . . . . . . . . . . Scanalyzer 4 | . . . . . . . . . . . . . . . . . . . . . . 4 Insert Component 4 | . . . . . . . . . . . . . . . . . . . . . . 4 Garrison Access Hacks 13 | . . . . 2 . 1 . 2 . 2 . 1 . 1 . 1 . 2 . . . 1 Unlock Access 8 | . . . . 1 . 1 . 1 . 1 . 1 . 1 . 1 . 1 . . . . Seal Access 1 | . . . . . . . . . . . . . . . . . . . . . . 1 Coupler Status 4 | . . . . 1 . . . 1 . 1 . . . . . . . 1 . . . . Unauthorized Hacks 6 | . 1 . 1 . . . . . . 2 . . . . . . . . . . . 2 Terminals 5 | . . . 1 . . . . . . 2 . . . . . . . . . . . 2 Track 1 | . . . 1 . . . . . . . . . . . . . . . . . . . Botnet 3 | . . . . . . . . . . 2 . . . . . . . . . . . 1 Disrupt 1 | . . . . . . . . . . . . . . . . . . . . . . 1 Fabricators . | . . . . . . . . . . . . . . . . . . . . . . . Repair Stations . | . . . . . . . . . . . . . . . . . . . . . . . Recycling Units 1 | . 1 . . . . . . . . . . . . . . . . . . . . . Tunnel 1 | . 1 . . . . . . . . . . . . . . . . . . . . . Scanalyzers . | . . . . . . . . . . . . . . . . . . . . . . . Garrison Access . | . . . . . . . . . . . . . . . . . . . . . . . Data Cores Recovered . | . . . . . . . . . . . . . . . . . . . . . . . Used . | . . . . . . . . . . . . . . . . . . . . . . . Hacking Detections 38 | . . . 2 3 . 1 . 2 . 4 . 2 . 3 . 2 . 1 . 3 4 11 Full Trace Events 2 | . . . . . . . . . . . . . . . . . . . . . . 2 Feedback Events . | . . . . . . . . . . . . . . . . . . . . . . . Feedback Blocked . | . . . . . . . . . . . . . . . . . . . . . . . Robot Schematics Acquired . | . . . . . . . . . . . . . . . . . . . . . . . Robots Built 3 | . . . . . . . . . . . . . . . . . . . . . 3 . Matter 417 | . . . . . . . . . . . . . . . . . . . . . 417 . Time 74 | . . . . . . . . . . . . . . . . . . . . . 74 . Total Robot Build Rating 27 | . . . . . . . . . . . . . . . . . . . . . 27 . Part Schematics Acquired . | . . . . . . . . . . . . . . . . . . . . . . . Parts Built . | . . . . . . . . . . . . . . . . . . . . . . . Matter . | . . . . . . . . . . . . . . . . . . . . . . . Time . | . . . . . . . . . . . . . . . . . . . . . . . Total Part Build Rating . | . . . . . . . . . . . . . . . . . . . . . . . Parts Repaired . | . . . . . . . . . . . . . . . . . . . . . . . Time . | . . . . . . . . . . . . . . . . . . . . . . . Parts Recycled . | . . . . . . . . . . . . . . . . . . . . . . . Recycled Matter . | . . . . . . . . . . . . . . . . . . . . . . . Retrieved Matter . | . . . . . . . . . . . . . . . . . . . . . . . Retrieved Components . | . . . . . . . . . . . . . . . . . . . . . . . Parts Scanalyzed . | . . . . . . . . . . . . . . . . . . . . . . . Part Schematics Acquired . | . . . . . . . . . . . . . . . . . . . . . . . Parts Damaged . | . . . . . . . . . . . . . . . . . . . . . . . Bothacking | -11 -10 -10 -9 -9 -9 -8 -8 -8 -8 -7 -7 -6 -6 -5 -5 -4 -4 -3 -3 -2 -2 -2 ------------ Run | Scr Mat Min Mat Sto Gar Mat Gar Mat Gar Fac Gar Fac Gar Fac Gar Fac Gar Res Gar Res Tes Sec Used RIF Installer 8 | . . . . . 1 . 1 . 1 . 1 . 1 . 1 . 1 . 1 . . . Hotswap 1 | . . . . . . . . . . . . . . . 1 . . . . . . . Threat Obfuscator 2 | . . . . . . . . . . . . . . . . . 1 . 1 . . . Patrol Navigation 1 | . . . . . . . . . . . 1 . . . . . . . . . . . Watcher Feeds 1 | . . . . . . . . . . . . . 1 . . . . . . . . . Alert ID Control 1 | . . . . . . . . . 1 . . . . . . . . . . . . . Structural Interface 1 | . . . . . . . 1 . . . . . . . . . . . . . . . Robots Hacked 34 | . . . . . . . . . . . . 3 . 3 4 3 2 . 5 12 . 2 Non-combat 8 | . . . . . . . . . . . . 3 . . . . . . . 3 . 2 Combat 26 | . . . . . . . . . . . . . . 3 4 3 2 . 5 9 . . Robot Hacks Applied 42 | . . . . . . . . . . . . 3 . 3 5 3 2 . 5 16 . 5 drop_inventory 4 | . . . . . . . . . . . . 3 . . . . . . . 1 . . purge_threat 9 | . . . . . . . . . . . . . . . . . . . . 5 . 4 map_route 1 | . . . . . . . . . . . . . . . . . . . . 1 . . find_garrison 1 | . . . . . . . . . . . . . . 1 . . . . . . . . disrupt_area 1 | . . . . . . . . . . . . . . . 1 . . . . . . . overload_power 1 | . . . . . . . . . . . . . . . . . . . 1 . . . wipe_record 1 | . . . . . . . . . . . . . . . . . 1 . . . . . reboot_system 1 | . . . . . . . . . . . . . . . . . . . . 1 . . overwrite_iff 11 | . . . . . . . . . . . . . . 2 2 1 1 . 1 4 . . streamctrl_high 1 | . . . . . . . . . . . . . . . 1 . . . . . . . formatsys_low 1 | . . . . . . . . . . . . . . . . . . . . . . 1 formatsys_high 10 | . . . . . . . . . . . . . . . 1 2 . . 3 4 . . Relay Couplers Released 37 | . . . . . . . 5 . 3 . . . 3 . 7 . 9 . 4 6 . . Machine Destruction 34 | . . . . . . . 5 . 3 . . . 3 . 7 . 9 . 4 3 . . Programmers 3 | . . . . . . . . . . . . . . . . . . . . 3 . . Attached 17 | . . . . . . . . . . . . 1 . 2 2 2 3 . 1 6 . . Robots Rewired . | . . . . . . . . . . . . . . . . . . . . . . . Allies Hacked 1 | . . . . . . . . . . . . . . . . . . . . . . 1 Hacks Repelled . | . . . . . . . . . . . . . . . . . . . . . . . Allies | -11 -10 -10 -9 -9 -9 -8 -8 -8 -8 -7 -7 -6 -6 -5 -5 -4 -4 -3 -3 -2 -2 -2 -------- Run | Scr Mat Min Mat Sto Gar Mat Gar Mat Gar Fac Gar Fac Gar Fac Gar Fac Gar Res Gar Res Tes Sec Total Allies 29 | . 1 3 . . . . . . . . . . . 2 3 3 1 . 4 8 3 1 Largest Group 4 | . 1 4 4 1 1 1 1 1 1 1 1 1 1 3 2 3 2 1 4 4 4 4 Highest-Rated Group 384 | . 58 98 104 71 71 75 75 75 77 88 88 105 107 202 182 157 154 164 232 349 384 384 Highest-Rated Ally 244 | . 58 58 64 71 71 75 75 75 77 88 88 105 107 126 123 142 149 164 142 196 217 244 Total Orders 9 | . . . . . . . . . . . . . . . . . . . . 2 . 7 STAY 1 | . . . . . . . . . . . . . . . . . . . . . . 1 ROAM 3 | . . . . . . . . . . . . . . . . . . . . 2 . 1 AID 5 | . . . . . . . . . . . . . . . . . . . . . . 5 Ally Attacks 909 | . 19 1 27 13 8 7 13 9 22 5 13 36 26 78 49 6 33 27 32 140 189 156 Total Damage 58868 | . 338 28 550 561 267 231 373 422 602 728 695 2338 1399 2429 1156 175 1697 3797 2488 7186 12486 18922 Kills 340 | . 7 1 6 9 6 3 6 6 11 7 8 16 14 23 12 3 10 13 17 43 49 70 Allies Corrupted . | . . . . . . . . . . . . . . . . . . . . . . . Allies Melted 1 | . . . . . . . . . . . . . . . 1 . . . . . . . Intel | -11 -10 -10 -9 -9 -9 -8 -8 -8 -8 -7 -7 -6 -6 -5 -5 -4 -4 -3 -3 -2 -2 -2 ------- Run | Scr Mat Min Mat Sto Gar Mat Gar Mat Gar Fac Gar Fac Gar Fac Gar Fac Gar Res Gar Res Tes Sec Robot Analysis Total . | . . . . . . . . . . . . . . . . . . . . . . . Derelict Logs Recovered . | . . . . . . . . . . . . . . . . . . . . . . . Drone Launches . | . . . . . . . . . . . . . . . . . . . . . . . Drone Recoveries . | . . . . . . . . . . . . . . . . . . . . . . . Exploration | -11 -10 -10 -9 -9 -9 -8 -8 -8 -8 -7 -7 -6 -6 -5 -5 -4 -4 -3 -3 -2 -2 -2 ------------- Run | Scr Mat Min Mat Sto Gar Mat Gar Mat Gar Fac Gar Fac Gar Fac Gar Fac Gar Res Gar Res Tes Sec Turns Passed 16841 | 181 355 293 301 589 533 208 276 223 400 442 227 666 637 1006 1184 197 1234 553 1056 1638 1476 3166 Spaces Moved 8075 | 87 191 224 170 315 362 105 164 133 153 327 153 392 316 446 480 99 537 272 369 647 592 1541 Core 5 | 5 . . . . . . . . . . . . . . . . . . . . . . Treads 5449 | 60 . . . . . . . . . . . 93 316 446 480 99 537 272 369 647 592 1538 Legs 2618 | 22 191 224 170 315 362 105 164 133 153 327 153 299 . . . . . . . . . . Wheels . | . . . . . . . . . . . . . . . . . . . . . . . Hover . | . . . . . . . . . . . . . . . . . . . . . . . Flight . | . . . . . . . . . . . . . . . . . . . . . . . Fastest Speed 50 | 50 120 120 120 120 120 120 120 120 123 123 123 122 160 160 160 156 156 156 157 152 152 141 Average Speed 142 | 144 120 120 120 120 120 120 120 122 123 123 123 131 160 160 160 159 160 156 157 154 152 143 Slowest Speed 255 | 160 120 120 120 120 120 120 120 123 123 123 123 160 160 160 160 160 255 157 157 157 152 152 Overloaded Moves . | . . . . . . . . . . . . . . . . . . . . . . . Propulsion Burnouts . | . . . . . . . . . . . . . . . . . . . . . . . Robots Hopped . | . . . . . . . . . . . . . . . . . . . . . . . Cave-ins Triggered . | . . . . . . . . . . . . . . . . . . . . . . . Microwarps 1 | . . . . . . . . . . . . . . . . . . . . . . 1 Exploration Rate (%) 36 | 5 28 56 25 57 51 9 34 17 41 14 32 16 56 17 82 4 58 14 51 23 63 85 Regions Visited 22 Branch Regions 4 Pre-discovered Areas 1 | . 1 . . . . . . . . . . . . . . . . . . . . . Known Exits Taken 10 | . . . 1 1 . 1 . 1 . 1 . 1 . 1 . 1 . 1 . 1 . . Unknown Exits Taken 4 | 1 1 1 . . . . . . . . . . . . . . . . . . 1 . Scrap Searched 2 | . . 2 . . . . . . . . . . . . . . . . . . . . Spaces Dug 58 | . 1 . 14 4 . 4 2 . . . 9 . . 1 . . . . . 5 . 18 Terrain Destroyed 324 | . 1 . 14 4 . 4 2 27 8 . 20 18 . 1 . . 2 6 6 68 28 115 Melee 5 | . . . . . . 4 . . . . . . . 1 . . . . . . . . Projectile 130 | . 1 . . . . . . . . . . . . . . . 2 6 6 68 28 19 AOE 189 | . . . 14 4 . . 2 27 8 . 20 18 . . . . . . . . . 96 Terrain Rammed . | . . . . . . . . . . . . . . . . . . . . . . . Walls Destroyed . | . . . . . . . . . . . . . . . . . . . . . . . Machines Disabled . | . . . . . . . . . . . . . . . . . . . . . . . Actions | -11 -10 -10 -9 -9 -9 -8 -8 -8 -8 -7 -7 -6 -6 -5 -5 -4 -4 -3 -3 -2 -2 -2 --------- Run | Scr Mat Min Mat Sto Gar Mat Gar Mat Gar Fac Gar Fac Gar Fac Gar Fac Gar Res Gar Res Tes Sec Total 12265 | 117 284 244 241 469 432 171 227 180 359 362 186 499 411 637 820 139 877 387 824 1105 1060 2234 Wait 2619 | . 35 17 41 70 53 43 39 27 176 23 25 24 49 70 266 9 291 86 412 222 317 324 Move 8054 | 86 190 223 169 315 361 104 163 133 152 326 152 392 315 445 479 98 536 271 368 646 591 1539 Hop . | . . . . . . . . . . . . . . . . . . . . . . . Pick Up 136 | 5 6 1 2 9 1 5 1 1 5 2 1 8 9 17 8 4 5 4 5 10 7 20 Fast Attach 113 | 8 5 . 2 5 . 2 . 2 1 3 . 4 1 7 3 6 7 4 2 12 6 33 Attach 87 | . 2 . 3 1 1 1 . 1 4 1 . 6 2 14 4 3 1 1 1 9 10 22 Detach 68 | 1 4 . . 3 . . . . 2 . . . 1 7 2 5 3 1 1 5 8 25 Swap 157 | 4 7 . 7 10 . 2 2 1 . 1 2 11 6 15 15 3 4 2 5 34 4 22 Drop 163 | 1 12 1 3 18 1 2 . 2 5 1 1 10 8 12 5 7 6 7 5 16 13 27 Fire 796 | 10 20 2 14 34 15 6 14 13 9 3 5 37 19 48 36 4 20 9 25 136 101 216 Melee 14 | . . . . . . 6 . . . . . 3 1 2 2 . . . . . . . Ram . | . . . . . . . . . . . . . . . . . . . . . . . Kick 18 | 2 3 . . 4 . . 3 . . 2 . 4 . . . . . . . . . . Crush 29 | . . . . . . . . . . . . . . . . . 4 2 . 15 3 5 Escape Stasis 10 | . . . . . . . 5 . 5 . . . . . . . . . . . . . Rewire 1 | . . . . . . . . . . . . . . . . . . . . . . 1 Trap . | . . . . . . . . . . . . . . . . . . . . . . . Miscellaneous . | . . . . . . . . . . . . . . . . . . . . . . . Route ------- -11/Scrapyard -10/Materials -10/Mines -9/Materials (discovered 3 exits: *Min / *Sto x2) -9/Storage (discovered 2 exits: *Mat / Gar) -9/Garrison (discovered 3 exits: *Mat x3) -8/Materials -8/Garrison -8/Materials -8/Garrison -7/Factory -7/Garrison -6/Factory -6/Garrison (discovered 2 exits: *Fac x2) -5/Factory (discovered 3 exits: Upp x2 / Gar) -5/Garrison (discovered 3 exits: *Fac x3) -4/Factory (discovered 2 exits: *Res / Gar) -4/Garrison (discovered 2 exits: *Res x2) -3/Research -3/Garrison -2/Research (discovered 3 exits: *Acc / *Tes x2) -2/Testing -2/Section 7 (discovered 1 exit: *Acc) History --------- Turn | Location | Event 18 | -11/Scrapyard | Discovered new exit (range 15) 182 | -11/Scrapyard | Entered Materials 311 | -10/Materials | Build established: Mutant 433 | -10/Materials | Discovered new exit (range 13) 537 | -10/Materials | Entered Mines 537 | -10/Mines | Accompanied by 1 ally 716 | -10/Mines | Assisted by bots powering up and referring to "LRC-V3" 812 | -10/Mines | Discovered new exit (range 6) 830 | -10/Mines | Entered Materials 830 | -9/Materials | Accompanied by 4 allies 830 | -9/Materials | Evolved 2 slots: Propulsion x1, Utility x1 861 | -9/Materials | Identified exit to Mines 861 | -9/Materials | Identified exit to Storage 1131 | -9/Materials | Entered Storage 1131 | -9/Storage | Accompanied by 1 ally 1504 | -9/Storage | Garrison activated, responded to threat 1675 | -9/Storage | Discovered new exit (range 12) 1720 | -9/Storage | Identified exit to Garrison 1720 | -9/Storage | Entered Garrison 1720 | -9/Garrison | Accompanied by 1 ally 1802 | -9/Garrison | Triggered checkpoint 1878 | -9/Garrison | Discovered new exit (range 15) 1984 | -9/Garrison | Triggered checkpoint 2040 | -9/Garrison | Discovered new exit (range 10) 2138 | -9/Garrison | Triggered checkpoint 2227 | -9/Garrison | Discovered new exit (range 8) 2245 | -9/Garrison | Installed Relay Interface Framework 2253 | -9/Garrison | Entered Materials 2253 | -8/Materials | Accompanied by 1 ally 2253 | -8/Materials | Evolved 2 slots: Utility x2 2328 | -8/Materials | Garrison activated, responded to threat 2432 | -8/Materials | Identified exit to Garrison 2461 | -8/Materials | Entered Garrison 2461 | -8/Garrison | Accompanied by 1 ally 2470 | -8/Garrison | Expanded RIF knowledge: Structural Interface 2552 | -8/Garrison | Triggered checkpoint 2596 | -8/Garrison | Discovered new exit (range 9) 2679 | -8/Garrison | Garrison Relay disabled 2737 | -8/Garrison | Entered Materials 2737 | -8/Materials | Accompanied by 1 ally 2956 | -8/Materials | Identified exit to Garrison 2960 | -8/Materials | Entered Garrison 2960 | -8/Garrison | Accompanied by 1 ally 2967 | -8/Garrison | Expanded RIF knowledge: Alert ID Control 3057 | -8/Garrison | Triggered checkpoint 3066 | -8/Garrison | Triggered checkpoint 3126 | -8/Garrison | Triggered checkpoint 3244 | -8/Garrison | Triggered checkpoint 3270 | -8/Garrison | Garrison Relay disabled 3305 | -8/Garrison | Discovered new exit (range 9) 3360 | -8/Garrison | Entered Factory 3360 | -7/Factory | Accompanied by 1 ally 3360 | -7/Factory | Evolved 2 slots: Utility x2 3796 | -7/Factory | Identified exit to Garrison 3802 | -7/Factory | Entered Garrison 3802 | -7/Garrison | Accompanied by 1 ally 3809 | -7/Garrison | Expanded RIF knowledge: Watcher Feeds 3870 | -7/Garrison | Triggered checkpoint 3898 | -7/Garrison | Triggered checkpoint 3949 | -7/Garrison | Discovered new exit (range 9) 4029 | -7/Garrison | Entered Factory 4029 | -6/Factory | Accompanied by 1 ally 4029 | -6/Factory | Evolved 2 slots: Propulsion x1, Utility x1 4412 | -6/Factory | Garrison activated, responded to threat 4502 | -6/Factory | Lost 3 parts (2n1u) 4629 | -6/Factory | Build established: Scavenger-Mutant 4695 | -6/Factory | Identified exit to Garrison 4695 | -6/Factory | Entered Garrison 4695 | -6/Garrison | Accompanied by 1 ally 4770 | -6/Garrison | Triggered checkpoint 4814 | -6/Garrison | Garrison Relay disabled 4926 | -6/Garrison | Spotted B-75 Beast 4942 | -6/Garrison | Triggered checkpoint 4946 | -6/Garrison | Triggered checkpoint 4982 | -6/Garrison | Allies destroyed B-75 Beast 4982 | -6/Garrison | Triggered checkpoint 5103 | -6/Garrison | Discovered new exit (range 12) 5160 | -6/Garrison | Build established: Bothacker-Mutant 5268 | -6/Garrison | Discovered new exit (range 13) 5322 | -6/Garrison | Expanded RIF knowledge: Patrol Navigation 5332 | -6/Garrison | Entered Factory 5332 | -5/Factory | Accompanied by 1 ally 5332 | -5/Factory | Evolved 2 slots: Power x1, Weapon x1 5632 | -5/Factory | First assault squad dispatched 5637 | -5/Factory | Build established: Bothacker-Gunner 5994 | -5/Factory | Identified exit to Upper Caves 6026 | -5/Factory | Spotted B-75 Beast 6057 | -5/Factory | Allies destroyed B-75 Beast 6310 | -5/Factory | Identified exit to Garrison 6338 | -5/Factory | Entered Garrison 6338 | -5/Garrison | Accompanied by 1 ally 6362 | -5/Garrison | Triggered checkpoint 6398 | -5/Garrison | Garrison Relay disabled 6538 | -5/Garrison | Triggered checkpoint 6539 | -5/Garrison | Spotted B-75 Beast 6544 | -5/Garrison | Assimilated Beast 6a with formatsys_high 6546 | -5/Garrison | Triggered checkpoint 6583 | -5/Garrison | Core integrity fell below 50% 6618 | -5/Garrison | Triggered checkpoint 6668 | -5/Garrison | Lost 4 parts (1p1n1u1w) 6689 | -5/Garrison | Build established: Bothacker-Tank 6997 | -5/Garrison | Discovered new exit (range 8) 7133 | -5/Garrison | Discovered new exit (range 14) 7290 | -5/Garrison | Discovered new exit (range 13) 7320 | -5/Garrison | Expanded RIF knowledge: Hotswap 7408 | -5/Garrison | Triggered checkpoint 7440 | -5/Garrison | Garrison Relay disabled 7522 | -5/Garrison | Entered Factory 7522 | -4/Factory | Accompanied by 1 ally 7522 | -4/Factory | Evolved 2 slots: Utility x2 7589 | -4/Factory | Discovered new exit (range 11) 7651 | -4/Factory | Identified exit to Garrison 7719 | -4/Factory | Entered Garrison 7719 | -4/Garrison | Accompanied by 2 allies 7722 | -4/Garrison | Build established: Botlord-Mutant 7764 | -4/Garrison | Triggered checkpoint 7790 | -4/Garrison | Garrison Relay disabled 7908 | -4/Garrison | Triggered checkpoint 7966 | -4/Garrison | Spotted B-86 Titan 8030 | -4/Garrison | Triggered checkpoint 8347 | -4/Garrison | Build established: Botlord-Tank 8551 | -4/Garrison | Discovered new exit (range 8) 8767 | -4/Garrison | Discovered new exit (range 13) 8794 | -4/Garrison | Expanded RIF knowledge: Threat Obfuscation 8830 | -4/Garrison | Triggered checkpoint 8875 | -4/Garrison | Garrison Relay disabled 8953 | -4/Garrison | Entered Research 8953 | -3/Research | Accompanied by 1 ally 8953 | -3/Research | Evolved 2 slots: Power x1, Propulsion x1 9396 | -3/Research | Garrison activated, responded to threat 9504 | -3/Research | Identified exit to Garrison 9506 | -3/Research | Entered Garrison 9506 | -3/Garrison | Accompanied by 1 ally 9566 | -3/Garrison | Spotted B-86 Titan 9572 | -3/Garrison | Triggered checkpoint 9590 | -3/Garrison | Triggered checkpoint 9591 | -3/Garrison | Allies destroyed B-86 Titan 9674 | -3/Garrison | Triggered checkpoint 10203 | -3/Garrison | Discovered new exit (range 22) 10251 | -3/Garrison | Expanded RIF knowledge: Threat Obfuscation 10378 | -3/Garrison | Triggered checkpoint 10418 | -3/Garrison | Garrison Relay disabled 10477 | -3/Garrison | Identified exit to Research 10562 | -3/Garrison | Entered Research 10562 | -2/Research | Accompanied by 1 ally 10562 | -2/Research | Evolved 2 slots: Propulsion x1, Utility x1 10812 | -2/Research | First assault squad dispatched 10849 | -2/Research | Found Fusion Bomb Launcher 11418 | -2/Research | Spotted B-90 Cyclops 11438 | -2/Research | Discovered new exit (range 28) 11467 | -2/Research | Garrison activated, responded to threat 11657 | -2/Research | Destroyed B-90 Cyclops 11760 | -2/Research | Identified exit to Testing 11917 | -2/Research | Build established: Bothacker-Tank 12200 | -2/Research | Entered Testing 12200 | -2/Testing | Accompanied by 1 ally 12273 | -2/Testing | Scanned by Researcher 12488 | -2/Testing | Build established: Bothacker-Gunner 12569 | -2/Testing | Found Prototype Protection 12569 | -2/Testing | Identified SHELL Armor 12574 | -2/Testing | Found Prototype Protection 12574 | -2/Testing | Identified Med. Regenerative Plating 12578 | -2/Testing | Found Prototype Protection 12578 | -2/Testing | Identified Hvy. Regenerative Plating 12581 | -2/Testing | Found Prototype Protection 12582 | -2/Testing | Identified Lgt. Regenerative Plating 12701 | -2/Testing | Spotted PG-70SVN3HTUH 12788 | -2/Testing | Found Prototype Hackware 12943 | -2/Testing | Found Prototype Hackware 13156 | -2/Testing | Identified Exp. Hacking Suite 13157 | -2/Testing | Identified System Mapper 13443 | -2/Testing | Build established: Hacker-Gunner 13449 | -2/Testing | Fabricated G-73 Enforcer? 13467 | -2/Testing | Spotted Fortress 13547 | -2/Testing | Core integrity fell below 50% 13567 | -2/Testing | Allies destroyed Fortress 13667 | -2/Testing | Discovered new exit (range 6) 13676 | -2/Testing | Entered Section 7 13676 | -2/Section 7 | Accompanied by 4 allies 13722 | -2/Section 7 | Spotted B-90 Cyclops 13749 | -2/Section 7 | Destroyed B-90 Cyclops 13795 | -2/Section 7 | Spotted B-90 Cyclops 13808 | -2/Section 7 | Identified exit to Access 13824 | -2/Section 7 | Allies destroyed B-90 Cyclops 13841 | -2/Section 7 | Garrison activated, responded to threat 13855 | -2/Section 7 | Lost 4 parts (1p1u2w) 13881 | -2/Section 7 | Destroyed 10 combat bots 14139 | -2/Section 7 | Found Alien Artifact 14368 | -2/Section 7 | Build established: Generator-Gunner 14400 | -2/Section 7 | Core integrity fell below 20% 14520 | -2/Section 7 | Found Alien Artifact 14663 | -2/Section 7 | Identified Integrated Mediator 14663 | -2/Section 7 | Identified Core Reset Matrix 14663 | -2/Section 7 | Installed Integrated Mediator, increased core attachment efficiency. 14804 | -2/Section 7 | Build established: Generator-Mutant 14845 | -2/Section 7 | Found Prototype Ballistic Gun 14845 | -2/Section 7 | Identified Multirail 15053 | -2/Section 7 | Found Alien Artifact 15067 | -2/Section 7 | Identified Microwarp Drive 15113 | -2/Section 7 | Found Alien Artifact 15297 | -2/Section 7 | Found Prototype Processor 15297 | -2/Section 7 | Identified Exp. Core Analyzer 15343 | -2/Section 7 | Identified Integrated Dissipator 15350 | -2/Section 7 | Installed Integrated Dissipator, increased core heat dissipation (+20) 15367 | -2/Section 7 | Spotted S7 Guard 15407 | -2/Section 7 | Allies destroyed S7 Guard 15425 | -2/Section 7 | Found Alien Artifact 15561 | -2/Section 7 | Identified Core Membrane 15561 | -2/Section 7 | Installed Core Membrane, gained immunity to corruption 15727 | -2/Section 7 | Garrison activated, responded to threat 15848 | -2/Section 7 | Build established: Generator-Gunner 15908 | -2/Section 7 | Found Quantum Capacitor 15997 | -2/Section 7 | Spotted Executioner 15998 | -2/Section 7 | Spotted Executioner 16007 | -2/Section 7 | Destroyed Executioner 16011 | -2/Section 7 | Allies destroyed Executioner 16078 | -2/Section 7 | Found Alien Artifact 16080 | -2/Section 7 | Found Alien Artifact 16095 | -2/Section 7 | Found Alien Artifact 16098 | -2/Section 7 | Found Alien Artifact 16217 | -2/Section 7 | Spotted B-99 Colossus 16247 | -2/Section 7 | Destroyed B-99 Colossus 16309 | -2/Section 7 | Found Integrated Dissipator 16309 | -2/Section 7 | Installed Integrated Dissipator, increased core heat dissipation (+20) 16363 | -2/Section 7 | Found Alien Artifact 16363 | -2/Section 7 | Identified LRC Energy Well 16363 | -2/Section 7 | Installed LRC Energy Well, increased energy storage capacity (+250) 16372 | -2/Section 7 | Found Alien Artifact 16372 | -2/Section 7 | Identified LRC Boosters 16372 | -2/Section 7 | Installed LRC Boosters, increased mass support (+10) 16375 | -2/Section 7 | Found LRC Energy Well 16375 | -2/Section 7 | Installed LRC Energy Well, increased energy storage capacity (+250) 16573 | -2/Section 7 | Found Alien Artifact 16600 | -2/Section 7 | Found Alien Artifact 16676 | -2/Section 7 | First assault squad dispatched 16770 | -2/Section 7 | Identified Matter Drive 16842 | -2/Section 7 | Core destroyed Last Messages --------------- 16808_ System corrupted: Imp. Quantum Reactor rejected. 16809_ Slug penetrates Aeration Cycler. 16809_ H-88 Terminator suffers critical hit. 16809_ Destroyed KE Penetrator. 16809_ Slug penetrates Aeration Cycler. 16810_ Slug penetrates Player 2. 16810_ Slug penetrates Wall. 16810_ Slug penetrates H-88 Terminator. 16810_ H-88 Terminator destroyed. 16812_ Acquired Imp. Quantum Reactor. 16817_ Ended siege mode. 16828_ U-05 Engineer builds a Wall. 16836_ System corrupted: Matter fused (-9). 16839_ Slug penetrates Wall. 16840_ Slug penetrates Door. 16841_ Slug penetrates H-88 Terminator. 16841_ H-88 Terminator suffers critical hit. 16841_ H-88 Terminator destroyed. 16841_ Slug penetrates Wall. 16842_ Slug penetrates Player 2. Map ----- +----------------------------------------------------+ | | | | | | | | | | | | | | | | | ########?????#################???????????????????? | | ! #????# #???????????????????? | | ^+????# #????????????????#### | | """"" ##???# ! #????????????????# | | """"" #???# ! #????????????????# " | | """"" #????# #????#####??###### " | | #????# | #????? #?? # " | | """"" #????# ! #????? #?? #| " | | """"" #????# = #??????" #??? ! + " | | """"" #????# #??????" #??? # | | % #????# #??????? #???? # " | | +####################+########??????? #???? # | | #?????######/######+!### | | #???# # *%!!*= | | ##??????# [%!=% | | ! ;##?????# ###"""""[!#*! | | ################# ===##;;;####### ##" !% #= | | ## #### ###^^!^# @ ## ##" !#[ | | ## !########=!% # @ ## T"" "" !+% | | ## # ==!% ;; ""# "" !#= | | ## """ # |= !!=# k ; ;;#[ #= | | + """ # =%* ![!# ! ;; ; #!!! #% | | ## """ # ! # = !#######!! #| | | ### # ### # =! #?????#!! #! | | #?# # # # # [% #?????# #= | | ########+### # # ######## ##?????########## | | ### ## #???##########????????" | | !! ## ## ##???#"""G"""#???######! | | !!=! * ## # ##?##""" """##### #% | | |= ! # # #?# # # | | !### | # [# #?# # # | | #" ! ## [# #?# """ """ +* # | | # # ######## """ """ # !+ | | * # " # [ = * + " """ # # | | ### ### # """ """ # # | | # # "" # # + """ """ # # | | ### """ # # # """ """ # # | | ### """ # ##### # """ """ ###### | | # ## # # #????# | | # ####### # #????# | | ### #??# ####### ! [ #????# | | #?# #??# #?????##############????# | +----------------------------------------------------+ Best States ------------- Heat Dissipation 127 Coolant Potential 50 Energy Generation 77 Energy Capacity 1350 Matter Stores 500 Matter Capacity 800 Sight Range 23 Robot Scan Range 15 Terrain Scan Range 16 Terrain Scan Density 60 ECM Strength 1 Jamming Range 8 Base Temperature (-) 200 Armor Coverage 1800 Resistance: TH 30 Core Shielding 20 Propulsion Shielding 33 Weapon Cycling 25 Phase Shifting 15 Evasion (%) 55 Targeting Accuracy 12 Launcher Accuracy 20 Target Analysis 8 Core Analysis 15 Armor Integrity Analysis 45 Recoil Reduction 6 Kinecelleration 40 Offensive Hacking 36 Defensive Hacking 20 Relay Coupler Types 83 Relay Coupler Value 4 Item Schematics ----------------- None Robot Schematics ------------------ None Fabricated ------------ G-73 Enforcer | x3 | -2/Testing | Preloaded Alien Tech Used ----------------- Integrated Mediator Microwarp Drive Integrated Dissipator Core Membrane LRC Energy Well LRC Boosters Matter Drive Achievements -------------- None Challenges ------------ None Player 2 | -11 -10 -10 -9 -9 -9 -8 -8 -8 -8 -7 -7 -6 -6 -5 -5 -4 -4 -3 -3 -2 -2 -2 ---------- Run | Scr Mat Min Mat Sto Gar Mat Gar Mat Gar Fac Gar Fac Gar Fac Gar Fac Gar Res Gar Res Tes Sec Slots Evolved 16 | . . 2 . . 2 . . . 2 . 2 . 2 . 2 . 2 . 2 . . . Power 1 | . . . . . . . . . . . . . . . . . . . 1 . . . Propulsion 4 | . . . . . 1 . . . . . 2 . . . 1 . . . . . . . Utility 9 | . . 1 . . 1 . . . 1 . . . 2 . 1 . 2 . 1 . . . Weapon 2 | . . 1 . . . . . . 1 . . . . . . . . . . . . . Parts Attached 436 | . 11 1 5 13 . 2 . 3 8 8 1 12 19 31 31 10 13 23 52 58 50 85 Parts Lost 139 | . . . . . . . . . 2 . . . 4 13 13 . 2 15 10 21 24 35 Damage Taken 26651 | . 235 . 86 77 95 80 177 76 734 126 308 340 808 1892 1474 107 1390 1702 1679 2223 4447 8595 Core 2571 | . . . . 14 35 14 17 14 114 51 34 20 150 173 498 27 60 113 230 110 331 566 Player 2/Cogmind (%) 71 | . . . . 50 56 100 70 53 81 25 73 20 100 88 96 100 37 90 86 43 67 77 Absorbed by Shields 1618 | . . . . . . . . . . . . . . . . . 23 164 . 786 645 . Damage Inflicted 55417 | . 338 28 420 561 267 231 373 422 602 728 695 2338 1399 2279 553 144 1638 3797 2351 6298 11625 18330 Player 2/Cogmind (%) 57 | . 48 44 69 39 43 66 54 50 57 90 62 63 59 58 43 100 61 82 66 40 63 58 Combat Hostiles Destroyed 255 | . 7 1 3 5 6 2 6 4 11 5 8 13 14 17 7 3 10 8 17 24 35 49 Player 2/Cogmind (%) 56 | . 53 33 42 33 40 100 66 40 73 100 66 76 63 54 35 100 71 72 73 38 70 52 Game ------ Seed ExplosiveCombatNanosword Manual? 0 Play Time 02:36:56 Cumulative 1966.2 hours Start 2021.04.28 @ 22:02:26 End 2021.04.29 @ 01:06:44 Sessions 2 Manual Loads 0 Difficulty Rogue Special Mode AFD2020/Player2 Game No. 2581 Rogue 2573 Adventurer 0 Explorer 8 Win Type - Total 218 Types 44/27/85/3/3/5/48/2/1 Lore% 100 Gallery% 99 Achievement% 100 Wizard Run 0 Options --------- ASCII 0 Keyboard 1 Movement Numpad Keybinds 1 Fullscreen 1 Font 18/SmallcapsGlow Map View 76x50 Tactical HUD 1 Map Filters NONE Filters NONE Steam 1 RUN: 6f7bcc5d-d053-47ff-9f78-3f41524a81aa